[Event "Late-Titled-Tuesday-Blitz-February-27-2024"]
[Site "Chess.com"]
[Date "2024.02.27"]
[Round "2"]
[White "Eeleyah"]
[Black "Zavgorodniy_Sergiy"]
[Result "0-1"]
[WhiteElo "2327"]
[BlackElo "2626"]
[TimeControl "180+1"]
[EndTime "14:21:20 PST"]
[Termination "Zavgorodniy_Sergiy won by checkmate"]

1. d4 {[%clk 0:03:00.7]} 1... d5 {[%clk 0:02:59.7]} 2. c4 {[%clk 0:03:00.7]}
2... dxc4 {[%clk 0:03:00.6]} 3. Nf3 {[%clk 0:03:00.6]} 3... Nf6 {[%clk
0:03:00.3]} 4. e3 {[%clk 0:03:01]} 4... e6 {[%clk 0:03:00.8]} 5. Bxc4 {[%clk
0:03:00.2]} 5... a6 {[%clk 0:03:01.3]} 6. O-O {[%clk 0:03:00.1]} 6... b5 {[%clk
0:03:01.7]} 7. Bd3 {[%clk 0:02:59.9]} 7... Bb7 {[%clk 0:03:02.2]} 8. b3 {[%clk
0:02:56.1]} 8... Nbd7 {[%clk 0:03:01.8]} 9. Bb2 {[%clk 0:02:56]} 9... c5 {[%clk
0:03:02.1]} 10. Qe2 {[%clk 0:02:53.5]} 10... Be7 {[%clk 0:02:59.4]} 11. Nbd2
{[%clk 0:02:53.5]} 11... O-O {[%clk 0:02:59.1]} 12. Rac1 {[%clk 0:02:49.1]}
12... Qb6 {[%clk 0:02:56.7]} 13. e4 {[%clk 0:02:35.7]} 13... cxd4 {[%clk
0:02:53.1]} 14. e5 {[%clk 0:02:24.1]} 14... Nd5 {[%clk 0:02:51.2]} 15. Qe4
{[%clk 0:02:09.2]} 15... g6 {[%clk 0:02:50.7]} 16. Bxd4 {[%clk 0:01:47.4]} 16...
Bc5 {[%clk 0:02:27.4]} 17. Bxc5 {[%clk 0:01:01.7]} 17... Nxc5 {[%clk 0:02:26.7]}
18. Rxc5 {[%clk 0:01:01.6]} 18... Qxc5 {[%clk 0:02:26.4]} 19. Qh4 {[%clk
0:01:02.5]} 19... Kg7 {[%clk 0:02:16.6]} 20. Ne4 {[%clk 0:00:43.3]} 20... Qe7
{[%clk 0:02:15.6]} 21. Qg3 {[%clk 0:00:20.9]} 21... Nb4 {[%clk 0:02:15.3]} 22.
Bb1 {[%clk 0:00:20.5]} 22... Bxe4 {[%clk 0:02:13.7]} 23. Bxe4 {[%clk 0:00:20.8]}
23... Rad8 {[%clk 0:02:11.1]} 24. h4 {[%clk 0:00:21]} 24... h5 {[%clk
0:02:08.4]} 25. Ng5 {[%clk 0:00:20.1]} 25... Nd5 {[%clk 0:02:06.4]} 26. Bb1
{[%clk 0:00:19.7]} 26... Rc8 {[%clk 0:02:04.8]} 27. Ne4 {[%clk 0:00:19.4]} 27...
Rc7 {[%clk 0:01:59.9]} 28. f4 {[%clk 0:00:19.2]} 28... b4 {[%clk 0:01:42.6]} 29.
Bd3 {[%clk 0:00:17.9]} 29... a5 {[%clk 0:01:37.6]} 30. Bc4 {[%clk 0:00:18]}
30... Rd8 {[%clk 0:01:27.8]} 31. Bxd5 {[%clk 0:00:17.7]} 31... exd5 {[%clk
0:01:14.3]} 32. Nf6 {[%clk 0:00:17.8]} 32... Rc3 {[%clk 0:01:05.3]} 33. Qg5
{[%clk 0:00:14.1]} 33... Rh8 {[%clk 0:00:37.5]} 34. Nxh5+ {[%clk 0:00:12.9]}
34... Kf8 {[%clk 0:00:38.1]} 35. Nf6 {[%clk 0:00:12.8]} 35... Qc5+ {[%clk
0:00:31.7]} 36. Kh2 {[%clk 0:00:12.4]} 36... Qc7 {[%clk 0:00:25]} 37. Nxd5
{[%clk 0:00:11.1]} 37... Qc8 {[%clk 0:00:15.2]} 38. Nf6 {[%clk 0:00:09.7]} 38...
Qf5 {[%clk 0:00:11.2]} 39. Qxf5 {[%clk 0:00:06.4]} 39... gxf5 {[%clk 0:00:12.1]}
40. Rd1 {[%clk 0:00:06.3]} 40... Rxh4+ {[%clk 0:00:09.8]} 41. Kg1 {[%clk
0:00:06.4]} 41... Kg7 {[%clk 0:00:09.6]} 42. Rd8 {[%clk 0:00:06.4]} 42... Rh8
{[%clk 0:00:09.4]} 43. Rd7 {[%clk 0:00:06.3]} 43... Rc6 {[%clk 0:00:05.6]} 44.
Nd5 {[%clk 0:00:06.4]} 44... Rg6 {[%clk 0:00:04.8]} 45. Kf2 {[%clk 0:00:06.1]}
45... Rg4 {[%clk 0:00:04.6]} 46. g3 {[%clk 0:00:06]} 46... Rh2+ {[%clk
0:00:04.6]} 47. Kf3 {[%clk 0:00:05]} 47... Rh3 {[%clk 0:00:04.6]} 48. Ne7 {[%clk
0:00:04.3]} 48... Rgxg3+ {[%clk 0:00:04.7]} 49. Kf2 {[%clk 0:00:04.5]} 49...
Rf3+ {[%clk 0:00:05.3]} 50. Kg2 {[%clk 0:00:05]} 50... Rhg3+ {[%clk 0:00:05.2]}
51. Kh2 {[%clk 0:00:05.6]} 51... Rg4 {[%clk 0:00:04.8]} 52. Nxf5+ {[%clk
0:00:05.4]} 52... Kg6 {[%clk 0:00:05.3]} 53. Ne7+ {[%clk 0:00:04.4]} 53... Kh5
{[%clk 0:00:05.4]} 54. Ng8 {[%clk 0:00:02.4]} 54... Rgxf4 {[%clk 0:00:05.1]} 55.
Nf6+ {[%clk 0:00:02.8]} 55... Kg6 {[%clk 0:00:05.1]} 56. Rd8 {[%clk 0:00:03]}
56... Rf2+ {[%clk 0:00:05.1]} 57. Kg3 {[%clk 0:00:03.4]} 57... R2f3+ {[%clk
0:00:05.3]} 58. Kg2 {[%clk 0:00:03.9]} 58... Kf5 {[%clk 0:00:05.6]} 59. Nh7
{[%clk 0:00:03.1]} 59... Kxe5 {[%clk 0:00:05.6]} 60. Re8+ {[%clk 0:00:03.2]}
60... Kd6 {[%clk 0:00:05.5]} 61. Rf8 {[%clk 0:00:03.5]} 61... Ke7 {[%clk
0:00:05.7]} 62. Rb8 {[%clk 0:00:03.7]} 62... Rf2+ {[%clk 0:00:06.1]} 63. Kg3
{[%clk 0:00:04]} 63... Rf5 {[%clk 0:00:06.7]} 64. Rb7+ {[%clk 0:00:03.3]} 64...
Ke6 {[%clk 0:00:06.4]} 65. Rb6+ {[%clk 0:00:03.8]} 65... Kd5 {[%clk 0:00:06.7]}
66. Nf8 {[%clk 0:00:03.6]} 66... Kc5 {[%clk 0:00:06.3]} 67. Rb8 {[%clk
0:00:03.7]} 67... R2f3+ {[%clk 0:00:06]} 68. Kg4 {[%clk 0:00:03.6]} 68... R5f4+
{[%clk 0:00:06.2]} 69. Kg5 {[%clk 0:00:04.2]} 69... f6+ {[%clk 0:00:06.6]} 70.
Kg6 {[%clk 0:00:04.3]} 70... Rg4+ {[%clk 0:00:06.2]} 71. Kf7 {[%clk 0:00:04.3]}
71... Rf2 {[%clk 0:00:06.7]} 72. Ne6+ {[%clk 0:00:05]} 72... Kd5 {[%clk
0:00:05.8]} 73. Rb5+ {[%clk 0:00:05.2]} 73... Ke4 {[%clk 0:00:05.3]} 74. Rxa5
{[%clk 0:00:05.7]} 74... Rgg2 {[%clk 0:00:04.9]} 75. Ra4 {[%clk 0:00:05.9]}
75... Rxa2 {[%clk 0:00:04.3]} 76. Rxb4+ {[%clk 0:00:06.3]} 76... Kd3 {[%clk
0:00:03.8]} 77. Nf4+ {[%clk 0:00:06.8]} 77... Kc3 {[%clk 0:00:04.4]} 78. Rc4+
{[%clk 0:00:07.1]} 78... Kxb3 {[%clk 0:00:05]} 79. Re4 {[%clk 0:00:07.4]} 79...
Rgf2 {[%clk 0:00:04.5]} 80. Kxf6 {[%clk 0:00:07]} 80... Ra4 {[%clk 0:00:03.3]}
81. Ke5 {[%clk 0:00:05.9]} 81... Rxe4+ {[%clk 0:00:02.9]} 82. Kxe4 {[%clk
0:00:06.5]} 82... Rf1 {[%clk 0:00:03.3]} 83. Nd3 {[%clk 0:00:06.5]} 83... Kc3
{[%clk 0:00:03.7]} 84. Ne5 {[%clk 0:00:06.8]} 84... Re1+ {[%clk 0:00:03.6]} 85.
Kd5 {[%clk 0:00:06.8]} 85... Re2 {[%clk 0:00:03.6]} 86. Nc6 {[%clk 0:00:06.9]}
86... Rd2+ {[%clk 0:00:03.7]} 87. Kc5 {[%clk 0:00:06.9]} 87... Rd3 {[%clk
0:00:04.1]} 88. Ne5 {[%clk 0:00:07]} 88... Re3 {[%clk 0:00:04.3]} 89. Nc6 {[%clk
0:00:06.9]} 89... Rh3 {[%clk 0:00:04.5]} 90. Ne5 {[%clk 0:00:06.9]} 90... Rh5
{[%clk 0:00:04.2]} 91. Kd5 {[%clk 0:00:07]} 91... Rg5 {[%clk 0:00:04.5]} 92. Ke4
{[%clk 0:00:07.3]} 92... Rg8 {[%clk 0:00:04]} 93. Kd5 {[%clk 0:00:07.5]} 93...
Rd8+ {[%clk 0:00:03.5]} 94. Ke4 {[%clk 0:00:06]} 94... Rd4+ {[%clk 0:00:03.5]}
95. Kf5 {[%clk 0:00:04.4]} 95... Ra4 {[%clk 0:00:03.7]} 96. Ke6 {[%clk
0:00:03.7]} 96... Kd4 {[%clk 0:00:03.6]} 97. Nc6+ {[%clk 0:00:03.8]} 97... Kc5
{[%clk 0:00:04.1]} 98. Ne5 {[%clk 0:00:03.6]} 98... Re4 {[%clk 0:00:04.5]} 99.
Kf5 {[%clk 0:00:03.7]} 99... Kd5 {[%clk 0:00:05.1]} 100. Nf3 {[%clk 0:00:04.1]}
100... Re3 {[%clk 0:00:05.1]} 101. Kf4 {[%clk 0:00:04.4]} 101... Re2 {[%clk
0:00:04.9]} 102. Kg3 {[%clk 0:00:02.7]} 102... Ke4 {[%clk 0:00:05.4]} 103. Ng5+
{[%clk 0:00:02.8]} 103... Kf5 {[%clk 0:00:05.4]} 104. Nf3 {[%clk 0:00:03.2]}
104... Re3 {[%clk 0:00:06]} 105. Kf2 {[%clk 0:00:03.7]} 105... Kf4 {[%clk
0:00:06.6]} 106. Nd4 {[%clk 0:00:03.7]} 106... Rd3 {[%clk 0:00:06.5]} 107. Ne2+
{[%clk 0:00:04.1]} 107... Ke4 {[%clk 0:00:05.9]} 108. Ng3+ {[%clk 0:00:04.4]}
108... Kd4 {[%clk 0:00:06.5]} 109. Ne2+ {[%clk 0:00:04.9]} 109... Ke5 {[%clk
0:00:07.2]} 110. Ng3 {[%clk 0:00:02.8]} 110... Ra3 {[%clk 0:00:06.5]} 111. Ne2
{[%clk 0:00:03.2]} 111... Ra2 {[%clk 0:00:06.2]} 112. Ke3 {[%clk 0:00:03.2]}
112... Ra3+ {[%clk 0:00:05.3]} 113. Kf2 {[%clk 0:00:03.5]} 113... Kd5 {[%clk
0:00:05.1]} 114. Nf4+ {[%clk 0:00:03.3]} 114... Ke4 {[%clk 0:00:04.7]} 115. Ne2
{[%clk 0:00:03.4]} 115... Rf3+ {[%clk 0:00:05.5]} 116. Ke1 {[%clk 0:00:03.5]}
116... Kd3 {[%clk 0:00:04.5]} 117. Nc1+ {[%clk 0:00:03.1]} 117... Ke3 {[%clk
0:00:05.1]} 118. Ne2 {[%clk 0:00:02.9]} 118... Rh3 {[%clk 0:00:05.4]} 119. Kf1
{[%clk 0:00:02.6]} 119... Rh2 {[%clk 0:00:04.8]} 120. Ng1 {[%clk 0:00:02.1]}
120... Rd2 {[%clk 0:00:04.6]} 121. Ke1 {[%clk 0:00:01.3]} 121... Ra2 {[%clk
0:00:04]} 122. Kf1 {[%clk 0:00:01.8]} 122... Rb2 {[%clk 0:00:03.5]} 123. Nh3
{[%clk 0:00:01.7]} 123... Rh2 {[%clk 0:00:02.9]} 124. Ng1 {[%clk 0:00:01.9]}
124... Rc2 {[%clk 0:00:02.4]} 125. Ke1 {[%clk 0:00:01.8]} 125... Rc1# {[%clk
0:00:02.7]} 0-1

[Event "Late-Titled-Tuesday-Blitz-February-27-2024"]
[Site "Chess.com"]
[Date "2024.02.27"]
[Round "3"]
[White "Charodej1"]
[Black "HaryKane"]
[Result "1-0"]
[WhiteElo "2315"]
[BlackElo "2585"]
[TimeControl "180+1"]
[EndTime "14:24:13 PST"]
[Termination "Charodej1 won by resignation"]

1. e4 {[%clk 0:03:00.9]} 1... e6 {[%clk 0:02:59.6]} 2. d4 {[%clk 0:03:00.5]}
2... d5 {[%clk 0:02:59]} 3. Nd2 {[%clk 0:03:01.1]} 3... dxe4 {[%clk 0:02:57.5]}
4. Nxe4 {[%clk 0:03:01.2]} 4... Nd7 {[%clk 0:02:49.2]} 5. Nf3 {[%clk 0:03:00.4]}
5... Ngf6 {[%clk 0:02:49.4]} 6. Nxf6+ {[%clk 0:03:00]} 6... Nxf6 {[%clk
0:02:50.3]} 7. Bd3 {[%clk 0:02:59.5]} 7... c5 {[%clk 0:02:49.8]} 8. c3 {[%clk
0:02:51.6]} 8... cxd4 {[%clk 0:02:49.5]} 9. Nxd4 {[%clk 0:02:51.5]} 9... Be7
{[%clk 0:02:43.5]} 10. O-O {[%clk 0:02:50.9]} 10... O-O {[%clk 0:02:43]} 11. Bg5
{[%clk 0:02:41.7]} 11... b6 {[%clk 0:02:39.1]} 12. Nc6 {[%clk 0:02:21.5]} 12...
Qc7 {[%clk 0:02:36.7]} 13. Nxe7+ {[%clk 0:02:19.4]} 13... Qxe7 {[%clk
0:02:37.6]} 14. Qf3 {[%clk 0:02:11.7]} 14... Bb7 {[%clk 0:02:30.5]} 15. Bxf6
{[%clk 0:02:04.1]} 15... gxf6 {[%clk 0:02:29.8]} 16. Qg3+ {[%clk 0:02:04]} 16...
Kh8 {[%clk 0:02:29.5]} 17. Qh4 {[%clk 0:02:04]} 1-0

[Event "Late-Titled-Tuesday-Blitz-February-27-2024"]
[Site "Chess.com"]
[Date "2024.02.27"]
[Round "3"]
[White "BabageldiAnnaberdiyev"]
[Black "FuenfgegenWilly"]
[Result "1/2-1/2"]
[WhiteElo "2640"]
[BlackElo "2463"]
[TimeControl "180+1"]
[EndTime "14:24:14 PST"]
[Termination "Game drawn by repetition"]

1. e4 {[%clk 0:02:59.6]} 1... e5 {[%clk 0:02:59.7]} 2. Nf3 {[%clk 0:02:59.6]}
2... Nc6 {[%clk 0:02:59.6]} 3. Bc4 {[%clk 0:03:00.1]} 3... Nf6 {[%clk
0:02:59.5]} 4. d4 {[%clk 0:02:59.9]} 4... exd4 {[%clk 0:02:59.5]} 5. O-O {[%clk
0:03:00.5]} 5... Nxe4 {[%clk 0:02:59.7]} 6. Re1 {[%clk 0:03:00.6]} 6... d5
{[%clk 0:03:00.3]} 7. Bxd5 {[%clk 0:03:01.2]} 7... Qxd5 {[%clk 0:03:00.9]} 8.
Nc3 {[%clk 0:03:01.7]} 8... Qh5 {[%clk 0:03:01.2]} 9. Nxe4 {[%clk 0:03:02]} 9...
Be6 {[%clk 0:03:01.8]} 10. Bg5 {[%clk 0:03:01.8]} 10... Bd6 {[%clk 0:03:01.9]}
11. Nxd6+ {[%clk 0:03:01.1]} 11... cxd6 {[%clk 0:03:02.2]} 12. Bf4 {[%clk
0:03:01.8]} 12... Qd5 {[%clk 0:03:01.8]} 13. c3 {[%clk 0:03:02.3]} 13... Rc8
{[%clk 0:03:01.7]} 14. Nxd4 {[%clk 0:02:58.5]} 14... Nxd4 {[%clk 0:03:01.5]} 15.
Qxd4 {[%clk 0:02:59.1]} 15... Qxd4 {[%clk 0:03:01.9]} 16. cxd4 {[%clk
0:02:59.7]} 16... Kd7 {[%clk 0:03:02.5]} 17. Bd2 {[%clk 0:02:54.7]} 17... Bd5
{[%clk 0:03:01.4]} 18. Bc3 {[%clk 0:02:54.8]} 18... h5 {[%clk 0:02:58.7]} 19. a3
{[%clk 0:02:55]} 19... Rhe8 {[%clk 0:02:55.6]} 20. f3 {[%clk 0:02:54.2]} 20...
Kc6 {[%clk 0:02:50.5]} 21. Kf2 {[%clk 0:02:53.9]} 21... Kb5 {[%clk 0:02:50.2]}
22. Rxe8 {[%clk 0:02:45.4]} 22... Rxe8 {[%clk 0:02:49.7]} 23. Bb4 {[%clk
0:02:44.7]} 23... Bc4 {[%clk 0:02:38.1]} 24. Re1 {[%clk 0:02:43.5]} 24... Rxe1
{[%clk 0:02:35.7]} 25. Kxe1 {[%clk 0:02:44.4]} 25... d5 {[%clk 0:02:31.9]} 26.
Kd2 {[%clk 0:02:43.7]} 26... a5 {[%clk 0:02:30.9]} 27. Bf8 {[%clk 0:02:43.1]}
27... g6 {[%clk 0:02:30.3]} 28. g3 {[%clk 0:02:43.7]} 28... a4 {[%clk
0:02:24.9]} 29. Kc3 {[%clk 0:02:39.4]} 29... Ba2 {[%clk 0:02:24.3]} 30. f4
{[%clk 0:02:39.2]} 30... Bb1 {[%clk 0:02:21.3]} 31. Bg7 {[%clk 0:02:32.2]} 31...
Bf5 {[%clk 0:02:20.4]} 32. Be5 {[%clk 0:02:32.2]} 32... Be4 {[%clk 0:02:20]} 33.
Bf6 {[%clk 0:02:31.7]} 33... Bf5 {[%clk 0:02:19.7]} 34. Be5 {[%clk 0:02:31.4]}
34... Be4 {[%clk 0:02:19.9]} 35. Bf6 {[%clk 0:02:31.6]} 35... Bf5 {[%clk
0:02:20.3]} 36. Be5 {[%clk 0:02:31.5]} 1/2-1/2

[Event "Late-Titled-Tuesday-Blitz-February-27-2024"]
[Site "Chess.com"]
[Date "2024.02.27"]
[Round "3"]
[White "Sjakkerntobi"]
[Black "miraitrunks"]
[Result "1-0"]
[WhiteElo "2457"]
[BlackElo "2210"]
[TimeControl "180+1"]
[EndTime "14:24:14 PST"]
[Termination "Sjakkerntobi won by resignation"]

1. e4 {[%clk 0:03:00.9]} 1... c5 {[%clk 0:03:00.5]} 2. Nf3 {[%clk 0:02:53.2]}
2... d6 {[%clk 0:02:54]} 3. b4 {[%clk 0:02:52.4]} 3... Nf6 {[%clk 0:02:52]} 4.
e5 {[%clk 0:02:51.4]} 4... Nd5 {[%clk 0:02:51.2]} 5. bxc5 {[%clk 0:02:51.2]}
5... dxc5 {[%clk 0:02:51]} 6. Bc4 {[%clk 0:02:50.5]} 6... Nc6 {[%clk 0:02:48.4]}
7. O-O {[%clk 0:02:48.4]} 7... Bg4 {[%clk 0:02:47.9]} 8. Re1 {[%clk 0:02:47.8]}
8... e6 {[%clk 0:02:48.2]} 9. h3 {[%clk 0:02:46.9]} 9... Bh5 {[%clk 0:02:47.8]}
10. Bb2 {[%clk 0:02:32.9]} 10... Be7 {[%clk 0:02:44.4]} 11. d3 {[%clk
0:02:33.1]} 11... O-O {[%clk 0:02:43.8]} 12. Nbd2 {[%clk 0:02:33.4]} 12... a6
{[%clk 0:02:40.5]} 13. a4 {[%clk 0:02:33.3]} 13... Rb8 {[%clk 0:02:35.8]} 14.
Ne4 {[%clk 0:02:31.6]} 14... b5 {[%clk 0:02:33.1]} 15. axb5 {[%clk 0:02:32.5]}
15... axb5 {[%clk 0:02:32.9]} 16. Bb3 {[%clk 0:02:33.4]} 16... Nd4 {[%clk
0:02:29.5]} 17. Bxd4 {[%clk 0:02:31.1]} 17... cxd4 {[%clk 0:02:30.4]} 18. g4
{[%clk 0:02:24]} 18... Bg6 {[%clk 0:02:28.3]} 19. Nxd4 {[%clk 0:02:16.3]} 19...
Nf4 {[%clk 0:02:26.1]} 20. Nc6 {[%clk 0:02:13.9]} 20... Qb6 {[%clk 0:02:22.9]}
21. Nxe7+ {[%clk 0:02:11.4]} 21... Kh8 {[%clk 0:02:22.9]} 22. Nxg6+ {[%clk
0:02:11.2]} 22... fxg6 {[%clk 0:02:23.8]} 23. Re3 {[%clk 0:02:02.7]} 1-0

[Event "Late-Titled-Tuesday-Blitz-February-27-2024"]
[Site "Chess.com"]
[Date "2024.02.27"]
[Round "3"]
[White "GlavkonVVS"]
[Black "IngOscarArdila"]
[Result "1-0"]
[WhiteElo "2515"]
[BlackElo "2289"]
[TimeControl "180+1"]
[EndTime "14:24:22 PST"]
[Termination "GlavkonVVS won by resignation"]

1. c4 {[%clk 0:03:00.9]} 1... Nf6 {[%clk 0:02:59.6]} 2. Nc3 {[%clk 0:03:01.5]}
2... g6 {[%clk 0:02:59.8]} 3. d4 {[%clk 0:03:01.5]} 3... Bg7 {[%clk 0:03:00.3]}
4. Nf3 {[%clk 0:03:02.2]} 4... d6 {[%clk 0:03:00.7]} 5. Bg5 {[%clk 0:03:02.7]}
5... O-O {[%clk 0:03:01.2]} 6. e3 {[%clk 0:03:03.2]} 6... Nbd7 {[%clk
0:03:01.1]} 7. h3 {[%clk 0:03:03.7]} 7... b6 {[%clk 0:03:01.6]} 8. Be2 {[%clk
0:03:04.2]} 8... Bb7 {[%clk 0:03:02.1]} 9. O-O {[%clk 0:03:04.6]} 9... c5 {[%clk
0:03:02.1]} 10. d5 {[%clk 0:03:04.6]} 10... h6 {[%clk 0:03:01]} 11. Bh4 {[%clk
0:03:04.5]} 11... Re8 {[%clk 0:03:01]} 12. e4 {[%clk 0:03:03.5]} 12... a6 {[%clk
0:02:58]} 13. a4 {[%clk 0:03:02.9]} 13... Qc7 {[%clk 0:02:57.5]} 14. Nd2 {[%clk
0:03:00]} 14... g5 {[%clk 0:02:55.1]} 15. Bg3 {[%clk 0:02:59.7]} 15... Ne5
{[%clk 0:02:55.7]} 16. f4 {[%clk 0:02:54.6]} 16... gxf4 {[%clk 0:02:52.4]} 17.
Bxf4 {[%clk 0:02:54.9]} 17... Ng6 {[%clk 0:02:50.8]} 18. Bh2 {[%clk 0:02:53.4]}
18... Nd7 {[%clk 0:02:50.6]} 19. Bh5 {[%clk 0:02:48]} 19... Bd4+ {[%clk
0:02:47.8]} 20. Kh1 {[%clk 0:02:47.5]} 20... Nde5 {[%clk 0:02:48.3]} 21. Nf3
{[%clk 0:02:42.6]} 21... Kg7 {[%clk 0:02:40.5]} 22. Nxd4 {[%clk 0:02:42.2]}
22... cxd4 {[%clk 0:02:40.9]} 23. Qxd4 {[%clk 0:02:40.3]} 23... Qxc4 {[%clk
0:02:38.8]} 24. Bxe5+ {[%clk 0:02:34.4]} 24... Nxe5 {[%clk 0:02:34.8]} 25. Rxf7+
{[%clk 0:02:33.5]} 25... Kg8 {[%clk 0:02:33.8]} 26. Qf2 {[%clk 0:02:28.6]} 26...
Nxf7 {[%clk 0:02:22.3]} 27. Qxf7+ {[%clk 0:02:27.9]} 27... Kh8 {[%clk
0:02:22.5]} 28. Bg6 {[%clk 0:02:28]} 1-0

[Event "Late-Titled-Tuesday-Blitz-February-27-2024"]
[Site "Chess.com"]
[Date "2024.02.27"]
[Round "3"]
[White "GianmarcoVaR"]
[Black "LiemLe"]
[Result "0-1"]
[WhiteElo "2708"]
[BlackElo "3057"]
[TimeControl "180+1"]
[EndTime "14:24:48 PST"]
[Termination "LiemLe won by resignation"]

1. e4 {[%clk 0:03:00.9]} 1... c5 {[%clk 0:02:59.8]} 2. Nf3 {[%clk 0:03:00.9]}
2... Nc6 {[%clk 0:03:00.5]} 3. Bb5 {[%clk 0:03:00.6]} 3... g6 {[%clk 0:03:00.2]}
4. O-O {[%clk 0:03:00.5]} 4... Bg7 {[%clk 0:03:00.3]} 5. Re1 {[%clk 0:02:55.9]}
5... e5 {[%clk 0:02:59.7]} 6. c3 {[%clk 0:02:54.2]} 6... Nge7 {[%clk 0:02:59.4]}
7. d4 {[%clk 0:02:53.2]} 7... cxd4 {[%clk 0:02:36.6]} 8. cxd4 {[%clk 0:02:53.4]}
8... Nxd4 {[%clk 0:02:37]} 9. Nxd4 {[%clk 0:02:50.2]} 9... exd4 {[%clk
0:02:37.9]} 10. Nd2 {[%clk 0:02:35.8]} 10... O-O {[%clk 0:02:35.6]} 11. Nf3
{[%clk 0:02:34.4]} 11... d5 {[%clk 0:02:23.8]} 12. e5 {[%clk 0:02:34.8]} 12...
Bg4 {[%clk 0:02:14.2]} 13. h3 {[%clk 0:02:34.9]} 13... Bxf3 {[%clk 0:02:14.1]}
14. Qxf3 {[%clk 0:02:35.8]} 14... Nc6 {[%clk 0:01:54.2]} 15. Qg3 {[%clk
0:02:33.2]} 15... Qa5 {[%clk 0:01:50.3]} 0-1

[Event "Late-Titled-Tuesday-Blitz-February-27-2024"]
[Site "Chess.com"]
[Date "2024.02.27"]
[Round "3"]
[White "Arystanner"]
[Black "RantomOpening"]
[Result "1-0"]
[WhiteElo "2785"]
[BlackElo "2569"]
[TimeControl "180+1"]
[EndTime "14:24:48 PST"]
[Termination "Arystanner won by resignation"]

1. d4 {[%clk 0:03:00.9]} 1... d5 {[%clk 0:03:00.2]} 2. c4 {[%clk 0:03:01.4]}
2... e6 {[%clk 0:03:00.5]} 3. Nc3 {[%clk 0:03:01.3]} 3... Nf6 {[%clk 0:03:00.8]}
4. Bg5 {[%clk 0:03:01.1]} 4... c5 {[%clk 0:02:57.3]} 5. cxd5 {[%clk 0:02:56.6]}
5... cxd4 {[%clk 0:02:56.7]} 6. Qxd4 {[%clk 0:02:55.4]} 6... Be7 {[%clk
0:02:56.9]} 7. e4 {[%clk 0:02:52.5]} 7... exd5 {[%clk 0:02:55.1]} 8. exd5 {[%clk
0:02:43.7]} 8... Nxd5 {[%clk 0:02:51.9]} 9. Nxd5 {[%clk 0:02:27.4]} 9... Bxg5
{[%clk 0:02:40.7]} 10. Qxg7 {[%clk 0:02:22.7]} 10... Rf8 {[%clk 0:02:20.4]} 11.
Qe5+ {[%clk 0:01:51.2]} 11... Be6 {[%clk 0:02:15.6]} 12. Nc7+ {[%clk 0:01:50.8]}
12... Kd7 {[%clk 0:01:49.4]} 13. Rd1+ {[%clk 0:01:48.9]} 13... Kc8 {[%clk
0:01:47]} 14. Rxd8+ {[%clk 0:01:47.7]} 1-0

[Event "Late-Titled-Tuesday-Blitz-February-27-2024"]
[Site "Chess.com"]
[Date "2024.02.27"]
[Round "3"]
[White "Cambek64"]
[Black "MyDream003"]
[Result "0-1"]
[WhiteElo "2483"]
[BlackElo "2718"]
[TimeControl "180+1"]
[EndTime "14:25:03 PST"]
[Termination "MyDream003 won by resignation"]

1. e4 {[%clk 0:02:56.3]} 1... c6 {[%clk 0:02:59.9]} 2. g3 {[%clk 0:02:53.9]}
2... d5 {[%clk 0:02:59.9]} 3. Bg2 {[%clk 0:02:54.5]} 3... dxe4 {[%clk
0:02:59.8]} 4. Bxe4 {[%clk 0:02:55.1]} 4... Nf6 {[%clk 0:02:59.9]} 5. Bg2 {[%clk
0:02:55.8]} 5... Bg4 {[%clk 0:02:53.1]} 6. Bf3 {[%clk 0:02:51.7]} 6... Bxf3
{[%clk 0:02:50.5]} 7. Nxf3 {[%clk 0:02:50.8]} 7... Nbd7 {[%clk 0:02:51.2]} 8. d4
{[%clk 0:02:50.1]} 8... e6 {[%clk 0:02:50.8]} 9. O-O {[%clk 0:02:48.9]} 9... Be7
{[%clk 0:02:50.8]} 10. c4 {[%clk 0:02:48.6]} 10... O-O {[%clk 0:02:50.9]} 11.
Nc3 {[%clk 0:02:48.9]} 11... Qb6 {[%clk 0:02:44.2]} 12. Qe2 {[%clk 0:02:40.4]}
12... Rfe8 {[%clk 0:02:39.6]} 13. b3 {[%clk 0:02:38.5]} 13... Nf8 {[%clk
0:02:37.6]} 14. Bb2 {[%clk 0:02:38.5]} 14... Ng6 {[%clk 0:02:35.4]} 15. Rfe1
{[%clk 0:02:35.4]} 15... a6 {[%clk 0:02:30.9]} 16. Qc2 {[%clk 0:02:29.9]} 16...
Qc7 {[%clk 0:02:22.3]} 17. Rad1 {[%clk 0:02:27.4]} 17... Rac8 {[%clk 0:02:21.5]}
18. Ne4 {[%clk 0:02:26.7]} 18... Nxe4 {[%clk 0:02:19.6]} 19. Qxe4 {[%clk
0:02:25.3]} 19... Bf6 {[%clk 0:02:19.3]} 20. Ne5 {[%clk 0:02:19.5]} 20... Rcd8
{[%clk 0:02:15.7]} 21. h4 {[%clk 0:02:16]} 21... Nxe5 {[%clk 0:01:56.6]} 22.
dxe5 {[%clk 0:02:15]} 22... Be7 {[%clk 0:01:57.2]} 23. Bd4 {[%clk 0:02:03.4]}
23... Qa5 {[%clk 0:01:54.5]} 24. Qc2 {[%clk 0:01:59.9]} 24... Rxd4 {[%clk
0:01:52.9]} 0-1

[Event "Late-Titled-Tuesday-Blitz-February-27-2024"]
[Site "Chess.com"]
[Date "2024.02.27"]
[Round "3"]
[White "Akhayan"]
[Black "Yurovskykh_Oleksandr"]
[Result "1/2-1/2"]
[WhiteElo "2428"]
[BlackElo "2676"]
[TimeControl "180+1"]
[EndTime "14:25:16 PST"]
[Termination "Game drawn by repetition"]

1. e4 {[%clk 0:03:00.4]} 1... e6 {[%clk 0:02:59.5]} 2. d4 {[%clk 0:02:58.5]}
2... d5 {[%clk 0:03:00.2]} 3. Nc3 {[%clk 0:02:59]} 3... dxe4 {[%clk 0:03:00.2]}
4. Nxe4 {[%clk 0:02:58.6]} 4... Bd7 {[%clk 0:03:00.9]} 5. Bd3 {[%clk 0:02:56.5]}
5... Bc6 {[%clk 0:03:01.1]} 6. Qe2 {[%clk 0:02:57]} 6... Nd7 {[%clk 0:03:01.1]}
7. Nf3 {[%clk 0:02:57.5]} 7... Ngf6 {[%clk 0:03:01.6]} 8. O-O {[%clk 0:02:53.6]}
8... Nxe4 {[%clk 0:02:49.7]} 9. Bxe4 {[%clk 0:02:53]} 9... Bxe4 {[%clk 0:02:50]}
10. Qxe4 {[%clk 0:02:53]} 10... c6 {[%clk 0:02:50.4]} 11. Qg4 {[%clk 0:02:48]}
11... Nf6 {[%clk 0:02:50]} 12. Qg3 {[%clk 0:02:48.1]} 12... g6 {[%clk
0:02:32.9]} 13. c3 {[%clk 0:02:36.8]} 13... Bg7 {[%clk 0:02:29.9]} 14. Bg5
{[%clk 0:02:36.2]} 14... h6 {[%clk 0:02:26.6]} 15. Be3 {[%clk 0:02:30.3]} 15...
Qd5 {[%clk 0:01:52.8]} 16. Ne5 {[%clk 0:02:27]} 16... Nh5 {[%clk 0:01:44.8]} 17.
Qg4 {[%clk 0:02:19.2]} 17... Nf6 {[%clk 0:01:26.6]} 18. Qg3 {[%clk 0:02:18]}
18... Nh5 {[%clk 0:01:13.5]} 19. Qg4 {[%clk 0:02:15.9]} 19... Nf6 {[%clk
0:01:05.3]} 20. Qg3 {[%clk 0:02:12.6]} 1/2-1/2